[Event "CCT Chessable Masters Playoffs 2025"]
[Site "Online"]
[Date "2025.02.20"]
[Round "54"]
[White "Erigaisi Arjun"]
[Black "Nepomniachtchi, Ian"]
[Result "0-1"]
[Annotator "TA"]
[ECO "C89"]
[WhiteElo "2801"]
[BlackElo "2754"]
[PlyCount "120"]
[EventDate "2025.02.13"]
[EventType "k.o."]
[EventCountry "NET"]
[SourceTitle "playchess.com"]
[Source "ChessBase"]
[SourceQuality "1"]
[TimeControl "600"]

{[%evp 29,120,41,38,43,57,54,58,57,51,36,35,33,40,22,20,22,25,31,30,-95,-22,-7,-15,-68,-58,-65,-68,-74,0,0,0,-12,0,-20,-15,-60,-41,-85,-32,-93,-90,-62,-59,-77,-59,-45,-27,-22,0,-31,0,0,0,0,0,0,10,0,0,0,28,0,233,53,70,0,0,-139,0,-16,41,33,33,0,33,25,33,33,34,0,80,55,97,-590,-574,-533,-493,-788,-578,-29997,-29998,-29998,-29999]} 1. e4 {[%emt 0:00:00]} e5 {[%emt 0:00:02]} 2. Nf3 {[%emt 0:00:02]} Nc6 {[%emt 0:00:01]} 3. Bb5 {[%emt 0:00:02]} a6 {[%emt 0:00:01]} 4. Ba4 {[%emt 0:00:00]} Nf6 {[%emt 0:00:01]} 5. O-O {[%emt 0:00:02]} Be7 {[%emt 0:00:00]} 6. Re1 {[%emt 0:00:01]} b5 {[%emt 0:00:03]} 7. Bb3 {[%emt 0:00:01]} O-O {[%emt 0:00:01]} 8. c3 {[%emt 0:00:01]} d5 {[%emt 0:00:07]} 9. exd5 {[%emt 0:00:00]} Nxd5 {[%emt 0:00:00]} 10. Nxe5 {[%emt 0:00:02]} Nxe5 {[%emt 0:00:01]} 11. Rxe5 {[%emt 0:00:00]} c6 {[%emt 0:00:10]} 12. Re1 {[%emt 0:00:02]} Bd6 {[%emt 0:00:02]} 13. d4 {[%emt 0:00:01]} Qh4 {[%emt 0:00:18]} 14. g3 {[%emt 0:00:02]} Qh3 {[%emt 0:00:00]} 15. Re4 {[%emt 0:00:00]} g5 {[%emt 0:00:02]} 16. Qf1 {[%emt 0:00:01] C89: Closed Ruy Lopez: Marshall Attack.} (16. Bxg5 Qf5 17. Nd2 (17. Bxd5 $2 cxd5 18. Re3 Qxg5 $19) 17... Qxg5 $17) 16... Qh5 {[%emt 0:00:18]} 17. Nd2 {[%emt 0:00:02]} Bh3 {[%emt 0:00:03]} 18. Qe2 {[%emt 0:00:40] White is slightly better.} Qg6 {[%emt 0:01:35][%cal Od5f4]} 19. Nf3 {[%emt 0:00:05]} f6 {[%emt 0:00:18]} 20. Bd2 {[%emt 0:00:40]} Bf5 {[%emt 0:00:01] [#]} 21. Re6 $146 {[%emt 0:00:16]} (21. Re3 Kh8 22. Bxd5 cxd5 23. h4 Bf4 24. Re7 Bg4 25. gxf4 Qh5 26. Kg2 gxh4 27. Re3 {½-½ Canibal,J (2328)-Leemans,R (2391) EU-ch 2020 sf12 email}) 21... Rae8 {[%emt 0:00:04]} (21... Rfe8 22. Rxe8+) 22. Re3 {[%emt 0:00:33]} (22. Nxg5 $2 Rxe6 23. Nxe6 Re8 $19) 22... Kg7 {[%emt 0:00:06]} 23. Bxd5 {[%emt 0:00:03]} cxd5 {[%emt 0:00:00]} 24. a4 {[%emt 0:00:05]} (24. Ne1 $11) 24... Bg4 {[%emt 0:00:28]} (24... Qh5 $17 25. axb5 Rxe3 26. Qxe3 (26. Bxe3 Be4 $17) 26... axb5 (26... Re8 $2 27. Ne5 $19) 27. Ra7+ Kg8) 25. axb5 $11 {[%emt 0:01:47]} Rxe3 {[%emt 0:00:09]} 26. fxe3 {[%emt 0:00:26]} (26. Qxe3 $11 axb5 (26... Re8 27. Ne5 $11) 27. h3 Bxh3 28. Ne1) 26... Qe4 $15 {[%emt 0:00:03]} (26... Qf5 27. Kf2 axb5 28. Ra5 Rb8) 27. Rf1 {[%emt 0:00:11]} axb5 {[%emt 0:00:03] White is weak on the light squares} 28. Qf2 {[%emt 0:00:24]} Bh3 {[%emt 0:00:17]} (28... Kg6 $17 29. Qg2 Ra8) 29. Ra1 $11 {[%emt 0:00:04]} Rf7 {[%emt 0:00:01]} 30. Be1 {[%emt 0:00:13]} Re7 {[%emt 0:00:11][%cal Oh3g4][%mdl 1024] Black has compensation.} 31. Ra6 {[%emt 0:00:14]} Re6 {[%emt 0:00:01][%cal Og7g6]} 32. Bd2 {[%emt 0:00:23]} Qb1+ {[%emt 0:00:08]} 33. Be1 {[%emt 0:00:09]} Qd3 {[%emt 0:00:09]} (33... Bg4 $17 {...Bxf3 is the strong threat.} 34. Nd2 Qxb2) 34. Ra7+ {[%emt 0:00:02]} (34. Bd2 $1 $15) 34... Kg6 $17 {[%emt 0:00:08]} 35. Bd2 {[%emt 0:00:14]} Qb1+ {[%emt 0:00:05]} 36. Be1 {[%emt 0:00:01]} Qe4 {[%emt 0:00:25][%cal Oh3g4] Active counter play!} (36... Bg4 $5 37. Kg2 Bxf3+ 38. Kxf3 b4 $15) 37. Bd2 {[%emt 0:00:03]} h6 {[%emt 0:00:01]} (37... Qc2 38. Qe2 b4 39. Rb7 b3) 38. Ra1 {[%emt 0:00:08]} Qc2 {[%emt 0:00:10]} 39. Be1 {[%emt 0:00:03]} Qd3 {[%emt 0:00:01]} 40. Bd2 {[%emt 0:00:01]} Bg4 {[%emt 0:00:01]} 41. Ne1 {[%emt 0:00:03]} Qc4 {[%emt 0:00:09]} 42. Qf1 {[%emt 0:00:10]} Be2 {[%emt 0:00:06]} 43. Qg2 {[%emt 0:00:01][%cal Ob2b3]} (43. Qh3 {seems wilder.} Re4 44. Ra6 Bg4 45. Qf1) 43... Bg4 $1 {[%emt 0:00:03]} 44. Qf1 {[%emt 0:00:05]} Qc7 {[%emt 0:00:07]} 45. Qxb5 {[%emt 0:00:06]} Bf5 $2 {[%emt 0:00:05]} (45... Bxg3 $1 $11 46. hxg3 Qxg3+ 47. Ng2 Bf3) 46. Qe2 $2 {[%emt 0:00:10]} (46. Qxd5 $18 {Hoping for Ra5.} Qd7 47. b4) 46... Be4 {[%emt 0:00:02]} 47. Qf2 {[%emt 0:00:01]} ({Better is} 47. Nd3 $14) 47... h5 $11 {[%emt 0:00:03]} 48. Ng2 {[%emt 0:00:02]} (48. Qe2 $11) 48... Qc4 {[%emt 0:00:06]} (48... h4 $1 $17 {[%cal Rh4g3]} 49. Qe2 hxg3) 49. h4 {[%emt 0:00:05]} g4 {[%emt 0:00:05]} (49... Qc8 $11) 50. Rf1 {[%emt 0:00:03]} Bf3 {[%emt 0:00:06]} 51. Ra1 {[%emt 0:00:02]} Qb3 {[%emt 0:00:05]} 52. Be1 {[%emt 0:00:03]} Qb8 {[%emt 0:00:02]} 53. b4 {[%emt 0:00:06]} Qb5 {[%emt 0:00:04]} 54. Qf1 {[%emt 0:00:02]} Qb7 {[%emt 0:00:02]} (54... Be2 $11 {remains equal.} 55. Qf2 Qd3) 55. Qa6 {[%emt 0:00:05]} Qc7 {[%emt 0:00:04] [#]} 56. Nf4+ $2 {[%emt 0:00:02][%mdl 8192] White does not recover from this.} (56. Qa8 $1 $16 {[%cal Ra8g8]} Re7 57. Qg8+ Rg7 58. Qe8+ Rf7 59. Nf4+ Bxf4 60. exf4) 56... Bxf4 $19 {[%emt 0:00:02]} 57. Qxe6 {[%emt 0:00:01]} Bxg3 {[%emt 0:00:05]} 58. Qg8+ {[%emt 0:00:14] [#]} (58. Kf1 $142 Bh2 59. Qg8+ Kf5 60. e4+ Bxe4 61. Ra2) 58... Kf5 $1 {[%emt 0:00:02] ( -> ...Bh2+)} 59. Qe8 {[%emt 0:00:18]} Bh2+ {[%emt 0:00:03] This pair of bishops is nice.} 60. Kf1 {[%emt 0:00:08]} Qc4+ {[%emt 0:00:01] Weighted Error Value: White=0.52/Black=0.22 (precise)   Loses game:     	White=1     	Black=1      Missed win:     	White=1     	---        Mistake:       	White=6     	Black=6      Inaccurate:     	White=7     	Black=3      OK:         	White=12    	Black=19     Best:        	White=1     	Black=2      Strong:       	---       	Black=2} 0-1

[Event "CCT Chessable Masters Playoffs 2025"]
[Site "Online"]
[Date "2025.02.20"]
[Round "54"]
[White "Firouzja, Alireza"]
[Black "Duda, Jan-Krzysztof"]
[Result "0-1"]
[Annotator "TA"]
[ECO "C43"]
[WhiteElo "2760"]
[BlackElo "2739"]
[PlyCount "154"]
[EventDate "2025.02.13"]
[EventType "k.o."]
[EventCountry "NET"]
[SourceTitle "playchess.com"]
[Source "ChessBase"]
[SourceQuality "1"]
[TimeControl "600"]

{[%evp 9,154,15,10,0,2,-5,10,0,0,0,33,37,31,0,0,8,0,7,10,-23,-10,-15,58,52,54,62,60,-24,61,68,70,62,53,50,78,47,87,85,87,38,54,23,43,45,72,78,104,69,102,81,80,71,94,89,97,81,108,33,41,42,62,0,0,0,55,62,62,66,70,70,69,75,66,65,57,0,420,439,422,431,470,390,736,243,243,0,236,236,229,229,229,229,229,229,229,229,252,237,207,0,0,0,236,236,236,229,236,229,229,0,315,302,302,229,229,97,229,0,229,229,229,229,229,229,302,302,302,0,229,0,29981,0,229,159,229,229,208,0,0,0,0,0,0,-29991,0,-29986,-29987]} 1. e4 {[%emt 0:00:00]} e5 {[%emt 0:00:00]} 2. Nf3 {[%emt 0:00:01][%cal Bg1f3,Bf3d4,Bd4f5][%mdl 32]} Nf6 {[%emt 0:00:01]} 3. d4 {[%emt 0:00:12]} Nxe4 {[%emt 0:00:01]} 4. dxe5 {[%emt 0:00:02]} d5 {[%emt 0:00:01]} 5. Nbd2 {[%emt 0:00:02]} Nc5 {[%emt 0:00:12]} 6. Nd4 {[%emt 0:00:05] C43: Petroff Defence: 3 d4.} Be7 $146 {[%emt 0:00:05]} (6... Nc6 7. N2f3 Bg4 8. Be2 Be7 9. Bf4 O-O 10. O-O Ne4 11. Re1 Bc5 12. Rc1 Bxf3 13. Nxc6 bxc6 {1-0 Czaeczine,L (1171)-Bako,E (971) GER-ch U10 Girls 2018 (9)}) 7. Be2 {[%emt 0:00:11]} O-O {[%emt 0:00:04]} 8. O-O {[%emt 0:00:04] The position is equal.} (8. c3 Ne6 9. N2f3 Nxd4 10. cxd4 c5 11. dxc5 Nc6 12. O-O) 8... Ne6 {[%emt 0:00:39]} 9. Nf5 {[%emt 0:00:18]} Nf4 {[%emt 0:00:12]} 10. Bg4 {[%emt 0:00:09]} Nc6 {[%emt 0:00:26]} 11. Nf3 {[%emt 0:00:15]} Ng6 {[%emt 0:00:03] A sharp opening} 12. Re1 {[%emt 0:00:12]} Be6 {[%emt 0:00:01]} 13. c3 {[%emt 0:00:43]} Qd7 {[%emt 0:00:10]} 14. Qd3 {[%emt 0:00:24]} (14. Nxe7+ {simplifies} Ngxe7 15. Bxe6 fxe6 16. Qd3) 14... a5 {[%emt 0:01:00]} 15. Bd2 {[%emt 0:00:49]} Bc5 {[%emt 0:00:27]} (15... h6 $11) 16. Ng5 $1 $14 {[%emt 0:02:09]} Rfe8 {[%emt 0:00:26]} (16... Ngxe5 17. Nh6+ gxh6 18. Qxh7#) (16... Ncxe5 $2 17. Rxe5 (17. Qh3 Bxf2+ 18. Kh1 h6 $16) 17... Rfe8 (17... Nxe5 18. Nh6+ gxh6 19. Qxh7#) 18. Qh3 $18) 17. Qh3 {[%emt 0:00:18]} Nf8 {[%emt 0:00:01][%cal Oh7h5]} 18. Rad1 {[%emt 0:00:21]} (18. Nxe6 $14 fxe6 19. Nd4) 18... Ne7 {[%emt 0:00:05]} (18... h5 $1 $11 19. Nxe6 (19. Bxh5 $2 Bxf5 20. Qg3 Ng6 $19) 19... hxg4 (19... fxe6 20. Nh6+ gxh6 21. Bxh5 $11) 20. Nxc5 Qxf5) 19. Nxe6 {[%emt 0:00:08]} fxe6 {[%emt 0:00:12]} 20. Nd4 {[%emt 0:00:07]} Bxd4 {[%emt 0:00:10]} 21. cxd4 {[%emt 0:00:00]} Nf5 {[%emt 0:00:00]} 22. Qd3 {[%emt 0:00:03]} Ng6 {[%emt 0:00:04][%cal Bf8g6,Bg6e7,Be7c6][%mdl 32]} 23. g3 {[%emt 0:00:02]} Rf8 {[%emt 0:00:03]} 24. h4 {[%emt 0:00:04]} (24. a3 $16) 24... Nge7 {[%emt 0:00:02]} 25. h5 {[%emt 0:00:06]} h6 {[%emt 0:00:10]} 26. a3 {[%emt 0:00:02]} Nc6 {[%emt 0:00:14]} 27. Bc3 {[%emt 0:00:02]} Qe7 {[%emt 0:00:01]} 28. f4 {[%emt 0:00:09]} Rab8 {[%emt 0:01:24]} 29. Rf1 {[%emt 0:00:52]} b5 {[%emt 0:00:13]} 30. Bxf5 {[%emt 0:00:11]} Rxf5 {[%emt 0:00:07]} 31. g4 {[%emt 0:00:01] White has a king side majority} Rf7 {[%emt 0:00:00] [#]} 32. Be1 $1 {[%emt 0:00:03] Wards off Qh4} b4 {[%emt 0:00:18] [#]} 33. Rc1 {[%emt 0:00:03]} (33. a4 $1 $16) 33... bxa3 $1 {[%emt 0:00:30]} 34. bxa3 {[%emt 0:00:05]} (34. Rxc6 axb2 35. Bg3 (35. Bxa5 $2 Rxf4 36. Rxf4 b1=Q+ 37. Qxb1 Rxb1+ 38. Rf1 Rxf1+ 39. Kxf1 Qe8 $19) 35... a4 $11) 34... Rb6 {[%emt 0:00:01]} 35. Kg2 {[%emt 0:00:03]} (35. a4 $14) 35... a4 $11 {[%emt 0:00:01][%cal Ba5a4,Ba4b3,Bb3b2][%mdl 32]} 36. Rc3 {[%emt 0:00:38]} Rb3 {[%emt 0:00:17]} 37. Rxb3 $14 {[%emt 0:00:07]} axb3 {[%emt 0:00:00]} 38. Qc3 $1 $36 {[%emt 0:00:03][%mdl 2048] White is pushing.} Qxa3 {[%emt 0:00:34]} 39. Qxc6 {[%emt 0:00:03][%cal Oe1c3]} b2 {[%emt 0:00:01]} 40. Qc2 {[%emt 0:00:16]} (40. Qxe6 $2 b1=Q (40... b1=B 41. Bg3 $14) 41. Qxd5 Qe3 $19) 40... Qa2 {[%emt 0:00:14]} 41. Bf2 {[%emt 0:00:07]} Rxf4 {[%emt 0:00:04]} 42. Kg3 {[%emt 0:00:00]} (42. Rb1 $1 $14 Rxg4+ 43. Kf3) 42... Rf7 $2 {[%emt 0:00:14][%mdl 8192]} (42... Re4 $11 43. Rg1 Qa3+ 44. Kh2 Qa2) 43. Rb1 $18 {[%emt 0:00:01]} Qa3+ {[%emt 0:00:01]} 44. Kh2 {[%emt 0:00:02]} Qf3 {[%emt 0:00:00]} 45. Rxb2 {[%emt 0:00:01] aiming for Qg6.} Qxg4 $2 {[%emt 0:00:14]} (45... Qf4+ 46. Kh3 Qf3+ 47. Kh2 Qf4+) 46. Rb8+ $2 {[%emt 0:00:01]} (46. Qg6 Qf3 47. Rb8+ (47. Qxe6 Qxh5+ 48. Qh3 Qg6 $18) 47... Rf8 48. Qxe6+ Kh8 49. Rxf8+ Qxf8 50. Kg3) 46... Rf8 {[%emt 0:00:01]} 47. Rxf8+ {[%emt 0:00:00]} (47. Qxc7 Qxh5+ 48. Kg1 Qd1+ (48... Qg4+ 49. Kh2 $11) 49. Kh2 Qh5+ 50. Kg1 Qd1+ 51. Kh2 Qh5+ $11) 47... Kxf8 {[%emt 0:00:00]} 48. Qg6 {[%emt 0:00:01]} (48. Qxc7 Qxh5+ 49. Kg1 Qd1+ 50. Kg2 Qg4+ 51. Kf1 Qd1+ 52. Kg2 Qg4+ 53. Bg3 Qe2+ 54. Bf2 Qg4+ $11) 48... Qf3 {[%emt 0:00:05]} 49. Kg1 {[%emt 0:00:05]} Qh3 {[%emt 0:00:11]} 50. Bg3 {[%emt 0:00:01]} Kg8 {[%emt 0:00:01]} 51. Kf2 {[%emt 0:00:01]} Kf8 {[%emt 0:00:02]} 52. Kf3 {[%emt 0:00:05]} Qf1+ {[%emt 0:00:01]} 53. Bf2 {[%emt 0:00:00]} Qh3+ {[%emt 0:00:04]} 54. Bg3 $2 {[%emt 0:00:01]} (54. Kf4 $18) 54... Qf1+ $11 {[%emt 0:00:02]} 55. Bf2 {[%emt 0:00:00]} Qa6 {[%emt 0:00:01]} (55... Qh3+ $1 $11 56. Ke2 c6) 56. Kg2 $18 {[%emt 0:00:01]} Qc6 {[%emt 0:00:01]} 57. Qg4 {[%emt 0:00:00]} Qe8 {[%emt 0:00:01]} 58. Qf3+ {[%emt 0:00:00]} Kg8 {[%emt 0:00:01]} 59. Qg4 $2 {[%emt 0:00:00]} (59. Qh3 $18) 59... Qf7 $2 {[%emt 0:00:00][%mdl 8192]} (59... Kf8 $1 $11) 60. Bh4 {[%emt 0:00:01]} Kh7 {[%emt 0:00:02]} 61. Kg3 {[%emt 0:00:00]} Qe8 {[%emt 0:00:00]} 62. Qf3 {[%emt 0:00:01]} (62. Kh2 $18 {and White stays clearly on top.}) 62... Kg8 {[%emt 0:00:01]} (62... Qb5 $16) 63. Qd3 $2 {[%emt 0:00:00]} (63. Qd1 $18) 63... Qa4 $2 {[%emt 0:00:01]} (63... Qxh5 $11 64. Bd8 Qf7) 64. Qg6 {[%emt 0:00:01]} Qb3+ {[%emt 0:00:01]} 65. Kh2 {[%emt 0:00:00]} Qb2+ {[%emt 0:00:01]} 66. Kh3 {[%emt 0:00:00]} Qc3+ {[%emt 0:00:01]} 67. Bg3 {[%emt 0:00:01]} Qc6 {[%emt 0:00:01]} 68. Bh4 $2 {[%emt 0:00:01]} (68. Bf4 $18) 68... Kf8 $2 {[%emt 0:00:00]} (68... Qc3+ $11 {and Black is okay.} 69. Kg2 Qb2+ 70. Bf2 Qb6) 69. Bf6 $2 {[%emt 0:00:01]} Qd7 $2 {[%emt 0:00:02][%mdl 8192]} (69... Qc3+ $11 70. Kg4 Qxd4+ 71. Kh3 Qc3+ (71... gxf6 72. Qxh6+ Ke8 73. Qg6+ Kd7 74. Qf7+ Kc8 75. Qxe6+ Kb8 76. exf6 $16) 72. Kg2 Qd2+ (72... gxf6 73. Qxh6+ Ke8 74. Qg6+ Kd8 75. Qxf6+ Kd7 76. Qf7+ Kd8 77. Qxe6 $14) 73. Kh3 Qe3+ (73... gxf6 74. exf6 Qe3+ 75. Kh2 $11) 74. Kg2 gxf6 75. Qxf6+ Ke8 76. Qxe6+ Kd8) 70. Bh4 $2 {[%emt 0:00:00]} (70. Qh7 Qf7 71. Qh8+ Qg8 72. Bxg7+ Kf7 73. Qxg8+ Kxg8 74. Bxh6 Kh7 75. Be3) 70... Qc6 $1 {[%emt 0:00:02]} 71. Qg4 {[%emt 0:00:00]} Qe8 {[%emt 0:00:00]} (71... Qc1 $16) 72. Bg3 {[%emt 0:00:01]} Kg8 {[%emt 0:00:01]} 73. Qf4 $2 {[%emt 0:00:00]} ({White should play} 73. Bf2 $18) 73... Qxh5+ $11 {[%emt 0:00:01]} 74. Qh4 {[%emt 0:00:00]} Qf5+ {[%emt 0:00:00]} 75. Qg4 {[%emt 0:00:00]} Qf1+ {[%emt 0:00:01]} 76. Kh4 $2 {[%emt 0:00:01][%mdl 8192]} (76. Kh2 $11 Qf7 77. Be1) 76... Qf7 $2 {[%emt 0:00:00]} (76... Qh1+ {mates} 77. Bh2 Qxh2+ 78. Qh3 g5+ 79. Kg4 Qf4+ (79... h5+ {is a self mate.} 80. Kf3 Qxh3+ 81. Ke2 Qc3 82. Kd1 g4 83. Ke2 g3 84. Kd1 Qb2 85. Ke1 g2 86. Kd1 g1=Q#) 80. Kh5 Kg7 (80... Qxd4 81. Qxe6+ Kf8 82. Qxh6+ Kf7 83. Qf6+ Kg8 84. Qd8+ Kf7 85. Qd7+ Kf8 86. Qd8+ Kf7 87. Qf6+ Kg8 88. Qxg5+ Kf7 89. Qf6+ Ke8 90. Qh8+ Ke7 91. Qg7+ Ke8 92. Qh8+ Ke7 93. Qg7+ Ke8 94. Qh8+ $11) (80... Qf7+ 81. Kg4 Qf4+ 82. Kh5 Kg7 83. Qg3 Qf7+ 84. Kg4 Qf5+ 85. Kh5 g4+ 86. Kh4 Qg5#) 81. Qg3 Qf7+ (81... Qxd4 82. Qe1 c5 83. Qh1 c4 84. Qe1 c3 85. Qh1 c2 86. Qe4 Qd1+ 87. Qg4 Qh1+ 88. Qh4 Qxh4#) 82. Kg4 Qf5+ 83. Kh5 g4+ 84. Kh4 Qg5#) 77. Qh5 $2 {[%mdl 8192]} (77. Kh3 $11) 77... g5+ {[%emt 0:00:01] Weighted Error Value: White=0.25 (precise) /Black=0.42  Loses game:     	White=2     	Black=7      Missed win:     	White=6     	Black=1      Mistake:       	White=8     	Black=6      Inaccurate:     	White=4     	Black=8      OK:         	White=19    	Black=14     Best:        	White=9     	Black=8      Strong:       	White=3     	Black=2} 0-1

[Event "CCT Chessable Masters Playoffs 2025"]
[Site "Online"]
[Date "2025.02.20"]
[Round "54"]
[White "Nepomniachtchi, Ian"]
[Black "Erigaisi Arjun"]
[Result "1-0"]
[Annotator "TA"]
[ECO "C01"]
[WhiteElo "2754"]
[BlackElo "2801"]
[PlyCount "113"]
[EventDate "2025.02.13"]
[EventType "k.o."]
[EventCountry "NET"]
[SourceTitle "playchess.com"]
[Source "ChessBase"]
[SourceQuality "1"]
[TimeControl "600"]

{[%evp 14,113,27,20,32,30,32,22,36,15,14,0,4,6,23,-31,-12,-43,33,14,44,36,116,107,163,175,181,161,160,126,114,118,198,194,206,206,212,130,126,97,110,118,131,127,122,131,105,81,106,78,90,70,175,181,225,223,226,225,358,356,342,344,327,311,354,396,400,384,356,353,417,417,414,412,399,373,495,472,534,493,614,602,601,602,545,540,418,365,1256,1322,1753,1738,1416,1065,5081,4718,29986,29987,29989,29990,29991,29988]} 1. e4 {[%emt 0:00:00]} e6 {[%emt 0:00:01]} 2. d4 {[%emt 0:00:01]} d5 {[%emt 0:00:00]} 3. exd5 {[%emt 0:00:01]} exd5 {[%emt 0:00:00]} 4. Nf3 {[%emt 0:00:00]} Nf6 {[%emt 0:00:01]} 5. Bd3 {[%emt 0:00:03]} c5 {[%emt 0:00:01][%cal Bc7c5,Bc5c4][%mdl 32]} 6. O-O {[%emt 0:00:08]} c4 {[%emt 0:00:04]} 7. Re1+ {[%emt 0:00:01]} Be7 {[%emt 0:00:01]} 8. Bf1 {[%emt 0:00:00]} O-O {[%emt 0:00:01] C01: French: Exchange Variation.} 9. b3 {[%emt 0:00:03]} cxb3 {[%emt 0:00:00]} 10. axb3 {[%emt 0:00:01]} Nc6 {[%emt 0:00:00] The position is equal.} 11. h3 {[%emt 0:00:10]} Bf5 {[%emt 0:00:05]} 12. Bd3 $5 {[%emt 0:00:11][%mdl 4] Leaves trodden paths.} Ne4 {[%emt 0:00:12]} 13. c3 {[%emt 0:00:11]} Bd6 $146 {[%emt 0:00:14]} ({Predecessor:} 13... Re8 14. Bb2 a6 15. Re3 Rc8 16. Nbd2 Bf6 17. Qe2 Nxd2 18. Bxf5 Rxe3 19. Qxe3 Nxf3+ 20. Qxf3 {1-0 Lenderman,A (2570)-Winterberg,L (2402) Titled Tuesday intern op 13th Dec Early blitz 2022 (1)}) 14. Be3 {[%emt 0:00:23] A sharp opening} ({White should play} 14. Ng5 $11) 14... Re8 {[%emt 0:00:03]} 15. b4 {[%emt 0:00:06][%cal Of3g5,Bb3b4,Bb4b5][%mdl 32]} (15. Ng5 $5) 15... Re6 {[%emt 0:00:23]} (15... h6 $15) 16. b5 {[%emt 0:00:15]} (16. Ng5 $5) 16... Na5 {[%emt 0:00:02]} (16... Ne7 {simplifies} 17. c4 Bb4 18. Re2 a5) 17. Ng5 {[%emt 0:00:22]} Rg6 {[%emt 0:00:47]} (17... Re7 $14) 18. Bxe4 $1 $16 {[%emt 0:00:33]} dxe4 {[%emt 0:00:06]} (18... Bxe4 $16 19. Qh5 h6 20. Nxe4 dxe4) 19. Qh5 $1 $18 {[%emt 0:00:01]} (19. Nd2 $2 Rxg5 20. Bxg5 Qxg5 $17) 19... Rf6 {[%emt 0:00:38]} (19... h6 $2 20. Nxf7 Kxf7 21. Qxf5+ Rf6 22. Qh5+ (22. Qxe4 Bc7 $18) 22... Kg8 23. Nd2 $18) 20. Nd2 {[%emt 0:00:03]} Bg6 {[%emt 0:00:21]} 21. Qg4 {[%emt 0:00:08]} Bc7 {[%emt 0:00:15]} 22. Ndxe4 {[%emt 0:00:07]} Rb6 {[%emt 0:00:13]} (22... Rf5 $16) 23. Rxa5 {[%emt 0:00:07]} f5 {[%emt 0:00:04]} 24. Qe2 {[%emt 0:01:01]} fxe4 {[%emt 0:00:02]} 25. Qc4+ {[%emt 0:00:01]} Kh8 {[%emt 0:00:00]} 26. Rea1 {[%emt 0:00:08]} h6 {[%emt 0:00:33] [#]} 27. Ne6 {[%emt 0:00:12]} (27. Rxa7 Rxa7 28. Rxa7 hxg5 $11) 27... Rxe6 {[%emt 0:00:15]} 28. Qxe6 {[%emt 0:00:00]} Bxa5 {[%emt 0:00:01]} 29. Qxg6 {[%emt 0:00:02] White has more active pieces.} Bxc3 {[%emt 0:00:01]} 30. Rd1 $36 {[%emt 0:00:43][%mdl 2048] Black is under strong pressure.} Qe8 {[%emt 0:00:52] Inhibits Qf7.} 31. Qxe8+ {[%emt 0:00:12]} Rxe8 $16 {[%emt 0:00:00][%mdl 4096] Endgame KRB-KRB} 32. d5 {[%emt 0:00:00][%cal Bd4d5,Bd5d6,Bd6d7][%mdl 32]} b6 {[%emt 0:00:01]} (32... Kg8 $14) 33. d6 $18 {[%emt 0:00:11]} Rd8 {[%emt 0:00:07] [#]} 34. Bf4 $1 {[%emt 0:00:07]} Rd7 {[%emt 0:01:00]} 35. Rc1 {[%emt 0:00:02]} Bb4 {[%emt 0:00:01]} (35... Bf6 {is a better defense.} 36. Rc7 Rd8 37. Rxa7 Kg8) 36. Rc7 {[%emt 0:00:02]} Rd8 {[%emt 0:00:00]} 37. d7 {[%emt 0:00:04][%cal Oc7c8]} (37. Rxa7 Bxd6 38. Bxd6 Rxd6 $16) 37... Kh7 {[%emt 0:00:01]} 38. Rxa7 {[%emt 0:00:05]} Bc5 {[%emt 0:00:11]} 39. Be3 {[%emt 0:00:09]} Bxe3 {[%emt 0:00:02]} 40. fxe3 {[%emt 0:00:00] KR-KR. White is a pawn up.} Kg6 {[%emt 0:00:01]} 41. Rb7 {[%emt 0:00:03]} Kf5 {[%emt 0:00:02]} 42. Kf2 {[%emt 0:00:06]} ({Not} 42. Rxb6 Rxd7 43. Rc6 Rb7 $14) 42... Ke6 {[%emt 0:00:12]} 43. Rxb6+ {[%emt 0:00:01]} Kxd7 {[%emt 0:00:02]} 44. Rg6 {[%emt 0:00:01]} Rf8+ {[%emt 0:00:05]} 45. Kg3 {[%emt 0:00:04]} Rf7 {[%emt 0:00:02]} 46. b6 {[%emt 0:00:01]} Kc8 {[%emt 0:00:03]} 47. Rc6+ {[%emt 0:00:02]} Kb8 {[%emt 0:00:11] [#]} 48. Rc7 $1 {[%emt 0:00:00][%mdl 512]} Rf6 {[%emt 0:00:09]} 49. Rxg7 {[%emt 0:00:01]} Rxb6 {[%emt 0:00:00]} 50. Kf4 {[%emt 0:00:01][%cal Og2g4]} Re6 $2 {[%emt 0:00:03]} (50... h5 51. Kxe4 (51. Rg5 h4 $18) 51... Kc8) 51. g4 {[%emt 0:00:02]} Kc8 {[%emt 0:00:01]} 52. h4 {[%emt 0:00:01][%cal Bh3h4,Bh4h5,Bh5g6][%mdl 32]} Kd8 {[%emt 0:00:01]} 53. h5 {[%emt 0:00:01] Rg6 would now be deadly.} Ke8 {[%emt 0:00:02]} 54. Rg6 {[%emt 0:00:03]} Rxg6 {[%emt 0:00:04]} 55. hxg6 {[%emt 0:00:00] White mates.} Ke7 {[%emt 0:00:00]} 56. Ke5 {[%emt 0:00:04]} Kf8 {[%emt 0:00:06]} 57. Kxe4 {[%emt 0:00:01] Weighted Error Value: White=0.08 (flawless) /Black=0.61  Mistake:       	White=1     	Black=7      Inaccurate:     	White=2     	Black=3      OK:         	White=14    	Black=16     Best:        	White=8     	Black=6      Strong:       	White=3     	---} 1-0